[Event "Titled Tuesday Blitz May 30 Early 2023"]
[White "Marn, Jan"]
[Black "Cramling Bellon, Anna"]
[WhiteFideId "14619245"]
[BlackFideId "32009232"]
[WhiteElo "2242"]
[BlackElo "1976"]
[Result "1-0"]
[Round "05"]
[TimeControl "180+2"]
[Date "2023.05.30"]
[WhiteClock "0:00:11"]
[BlackClock "0:00:07"]

1. d4 {[%clk 0:02:56]}  Nf6 {[%clk 0:02:59]} 2. Nf3 {[%clk 0:02:56]}  d5 {[%clk 0:02:59]} 3. e3 {[%clk 0:02:55]}  c5 {[%clk 0:02:54]} 4. b3 {[%clk 0:02:49]}  Nc6 {[%clk 0:02:53]} 5. Bd3 {[%clk 0:02:49]}  Bg4 {[%clk 0:02:47]} 6. Bb2 {[%clk 0:02:47]}  e6 {[%clk 0:02:43]} 7. Nbd2 {[%clk 0:02:47]}  cxd4 {[%clk 0:02:41]} 8. exd4 {[%clk 0:02:46]}  Bd6 {[%clk 0:02:36]} 9. O-O {[%clk 0:02:44]}  O-O {[%clk 0:02:34]} 10. a3 {[%clk 0:02:40]}  Rc8 {[%clk 0:02:29]} 11. Qe1 {[%clk 0:02:33]}  Qc7 {[%clk 0:02:13]} 12. Ne5 {[%clk 0:02:28]}  Nd7 {[%clk 0:02:01]} 13. Nxg4 {[%clk 0:02:22]}  h5 {[%clk 0:01:38]} 14. Ne3 {[%clk 0:01:56]}  Bxh2+ {[%clk 0:01:38]} 15. Kh1 {[%clk 0:01:57]}  Bd6 {[%clk 0:01:26]} 16. Qe2 {[%clk 0:01:30]}  g6 {[%clk 0:01:05]} 17. Nf3 {[%clk 0:01:24]}  Qd8 {[%clk 0:00:46]} 18. g3 {[%clk 0:01:11]}  Nf6 {[%clk 0:00:33]} 19. Ne5 {[%clk 0:01:00]}  Kg7 {[%clk 0:00:29]} 20. Ng2 {[%clk 0:00:49]}  Ng4 {[%clk 0:00:25]} 21. Nf4 {[%clk 0:00:25]}  Rh8 {[%clk 0:00:15]} 22. Kg2 {[%clk 0:00:16]}  Ngxe5 {[%clk 0:00:05]} 23. dxe5 {[%clk 0:00:16]}  Bc5 {[%clk 0:00:05]} 24. Bxg6 {[%clk 0:00:10]}  fxg6 {[%clk 0:00:05]} 25. Nxe6+ {[%clk 0:00:10]}  Kf7 {[%clk 0:00:05]} 26. Nxd8+ {[%clk 0:00:11]}  Rhxd8 {[%clk 0:00:06]} 27. e6+ {[%clk 0:00:10]}  Ke7 {[%clk 0:00:06]} 28. f4 {[%clk 0:00:09]}  Rf8 {[%clk 0:00:06]} 29. f5 {[%clk 0:00:08]}  gxf5 {[%clk 0:00:06]} 30. Qxh5 {[%clk 0:00:09]}  Kxe6 {[%clk 0:00:06]} 31. Rae1+ {[%clk 0:00:08]}  Kd6 {[%clk 0:00:06]} 32. Qg6+ {[%clk 0:00:07]}  Kc7 {[%clk 0:00:06]} 33. Qg7+ {[%clk 0:00:07]}  Kb6 {[%clk 0:00:06]} 34. b4 {[%clk 0:00:07]}  Bd6 {[%clk 0:00:06]} 35. Re6 {[%clk 0:00:07]}  Rg8 {[%clk 0:00:05]} 36. Qxg8 {[%clk 0:00:08]}  Rxg8 {[%clk 0:00:04]} 37. Rxd6 {[%clk 0:00:08]}  Re8 {[%clk 0:00:04]} 38. Rxd5 {[%clk 0:00:08]}  Kc7 {[%clk 0:00:04]} 39. Rdxf5 {[%clk 0:00:08]}  Re2+ {[%clk 0:00:04]} 40. R1f2 {[%clk 0:00:09]}  Re1 {[%clk 0:00:04]} 41. Rf7+ {[%clk 0:00:08]}  Kd6 {[%clk 0:00:04]} 42. c4 {[%clk 0:00:08]}  Ne7 {[%clk 0:00:02]} 43. c5+ {[%clk 0:00:07]}  Kd7 {[%clk 0:00:03]} 44. Bf6 {[%clk 0:00:07]}  Ke8 {[%clk 0:00:02]} 45. Rxe7+ {[%clk 0:00:08]}  Rxe7 {[%clk 0:00:02]} 46. Bxe7 {[%clk 0:00:08]}  Kxe7 {[%clk 0:00:03]} 47. g4 {[%clk 0:00:09]}  Ke6 {[%clk 0:00:03]} 48. g5 {[%clk 0:00:10]}  Kd5 {[%clk 0:00:04]} 49. g6 {[%clk 0:00:11]}  Kc4 {[%clk 0:00:05]} 50. g7 {[%clk 0:00:12]}  Kb3 {[%clk 0:00:06]} 51. g8=Q+ {[%clk 0:00:12]}  Kxa3 {[%clk 0:00:07]} 52. Qa2+ {[%clk 0:00:11]}  Kxb4 {[%clk 0:00:07]} 53. Rb2+ {[%clk 0:00:12]}  Kxc5 {[%clk 0:00:07]} 54. Rc2+ {[%clk 0:00:11]}  Kd4 {[%clk 0:00:08]} 55. Qc4+ {[%clk 0:00:11]}  Ke3 {[%clk 0:00:07]} 56. Re2# {[%clk 0:00:11]} 1-0


[Site "https://www.chess.com"]

[Event "Titled Tuesday Blitz May 30 Early 2023"]
[White "Silvestre, Christian"]
[Black "Pinheiro, Iung Alicio de O."]
[WhiteFideId "30956269"]
[BlackFideId "2104350"]
[WhiteElo "2358"]
[BlackElo "2283"]
[Result "1-0"]
[Round "05"]
[TimeControl "180+2"]
[Date "2023.05.30"]
[WhiteClock "0:00:07"]
[BlackClock "0:00:00"]

1. e4 {[%clk 0:03:00]}  c5 {[%clk 0:02:58]} 2. Nc3 {[%clk 0:02:59]}  Nc6 {[%clk 0:02:53]} 3. f4 {[%clk 0:02:59]}  e6 {[%clk 0:02:50]} 4. Nf3 {[%clk 0:02:55]}  a6 {[%clk 0:02:48]} 5. g3 {[%clk 0:02:49]}  Nf6 {[%clk 0:02:43]} 6. Bg2 {[%clk 0:02:48]}  d5 {[%clk 0:02:33]} 7. exd5 {[%clk 0:02:42]}  exd5 {[%clk 0:02:26]} 8. O-O {[%clk 0:02:39]}  d4 {[%clk 0:02:17]} 9. Re1+ {[%clk 0:02:10]}  Be7 {[%clk 0:02:16]} 10. Ne4 {[%clk 0:02:06]}  Nxe4 {[%clk 0:01:34]} 11. Rxe4 {[%clk 0:02:07]}  d3 {[%clk 0:01:32]} 12. c3 {[%clk 0:01:30]}  O-O {[%clk 0:01:28]} 13. b3 {[%clk 0:01:30]}  Bf5 {[%clk 0:01:22]} 14. Re1 {[%clk 0:01:25]}  c4 {[%clk 0:01:17]} 15. bxc4 {[%clk 0:01:20]}  Bc5+ {[%clk 0:01:17]} 16. Kh1 {[%clk 0:01:21]}  Re8 {[%clk 0:01:15]} 17. Bb2 {[%clk 0:01:20]}  Qd7 {[%clk 0:00:51]} 18. a4 {[%clk 0:01:12]}  h6 {[%clk 0:00:41]} 19. Ba3 {[%clk 0:01:08]}  Bf2 {[%clk 0:00:41]} 20. Rf1 {[%clk 0:01:05]}  Re2 {[%clk 0:00:38]} 21. Ng1 {[%clk 0:00:48]}  Bxg1 {[%clk 0:00:36]} 22. Kxg1 {[%clk 0:00:49]}  Bh3 {[%clk 0:00:34]} 23. Rf2 {[%clk 0:00:47]}  Rae8 {[%clk 0:00:31]} 24. Bc5 {[%clk 0:00:42]}  Bxg2 {[%clk 0:00:28]} 25. Kxg2 {[%clk 0:00:41]}  Qf5 {[%clk 0:00:17]} 26. Be3 {[%clk 0:00:38]}  Qe4+ {[%clk 0:00:10]} 27. Kg1 {[%clk 0:00:37]}  Qxc4 {[%clk 0:00:11]} 28. Rxe2 {[%clk 0:00:23]}  dxe2 {[%clk 0:00:12]} 29. Qe1 {[%clk 0:00:23]}  Qd3 {[%clk 0:00:12]} 30. Kf2 {[%clk 0:00:21]}  Na5 {[%clk 0:00:08]} 31. Qxe2 {[%clk 0:00:21]}  Qd7 {[%clk 0:00:08]} 32. Rb1 {[%clk 0:00:18]}  Qh3 {[%clk 0:00:06]} 33. Kg1 {[%clk 0:00:16]}  Qf5 {[%clk 0:00:07]} 34. Rb4 {[%clk 0:00:14]}  Qd5 {[%clk 0:00:06]} 35. Qg2 {[%clk 0:00:12]}  Qd3 {[%clk 0:00:04]} 36. Rd4 {[%clk 0:00:10]}  Qb1+ {[%clk 0:00:03]} 37. Qf1 {[%clk 0:00:09]}  Qb3 {[%clk 0:00:03]} 38. Rd7 {[%clk 0:00:09]}  Qxa4 {[%clk 0:00:02]} 39. Qd3 {[%clk 0:00:09]}  Qa1+ {[%clk 0:00:02]} 40. Kg2 {[%clk 0:00:09]}  Qa3 {[%clk 0:00:03]} 41. Qd5 {[%clk 0:00:08]}  Qf8 {[%clk 0:00:00]} 42. Bc5 {[%clk 0:00:07]} 1-0


[Site "https://www.chess.com"]

[Event "Titled Tuesday Blitz May 30 Early 2023"]
[White "Kohler, Aran"]
[Black "koncheto"]
[WhiteFideId "1002856"]
[WhiteElo "2352"]
[BlackElo "2587"]
[Result "0-1"]
[Round "05"]
[TimeControl "180+2"]
[Date "2023.05.30"]
[WhiteClock "0:00:00"]
[BlackClock "0:00:07"]

1. d4 {[%clk 0:03:00]}  Nf6 {[%clk 0:02:59]} 2. c3 {[%clk 0:03:00]}  e6 {[%clk 0:02:57]} 3. Bg5 {[%clk 0:03:01]}  d5 {[%clk 0:02:54]} 4. Nd2 {[%clk 0:03:01]}  c5 {[%clk 0:02:53]} 5. e3 {[%clk 0:03:01]}  Bd6 {[%clk 0:02:53]} 6. Bd3 {[%clk 0:02:54]}  Nbd7 {[%clk 0:02:53]} 7. f4 {[%clk 0:02:49]}  b6 {[%clk 0:02:47]} 8. Nh3 {[%clk 0:02:41]}  Bb7 {[%clk 0:02:41]} 9. O-O {[%clk 0:02:40]}  Qc7 {[%clk 0:02:40]} 10. Rc1 {[%clk 0:02:35]}  Ne4 {[%clk 0:02:33]} 11. Nxe4 {[%clk 0:02:32]}  dxe4 {[%clk 0:02:33]} 12. Bb5 {[%clk 0:02:32]}  O-O {[%clk 0:02:31]} 13. Qg4 {[%clk 0:02:11]}  f5 {[%clk 0:02:25]} 14. Qh4 {[%clk 0:02:06]}  h6 {[%clk 0:02:17]} 15. Be7 {[%clk 0:01:54]}  Rf7 {[%clk 0:01:55]} 16. Bxd6 {[%clk 0:01:52]}  Qxd6 {[%clk 0:01:56]} 17. Rfd1 {[%clk 0:01:48]}  Bc6 {[%clk 0:01:14]} 18. Be2 {[%clk 0:01:40]}  Nf6 {[%clk 0:01:07]} 19. Nf2 {[%clk 0:01:38]}  Rd8 {[%clk 0:01:04]} 20. dxc5 {[%clk 0:01:34]}  Qb8 {[%clk 0:00:56]} 21. cxb6 {[%clk 0:01:28]}  Rxd1+ {[%clk 0:00:53]} 22. Rxd1 {[%clk 0:01:26]}  Qxb6 {[%clk 0:00:54]} 23. Rd4 {[%clk 0:00:23]}  Qxb2 {[%clk 0:00:50]} 24. Bc4 {[%clk 0:00:19]}  Bd5 {[%clk 0:00:42]} 25. Nd1 {[%clk 0:00:18]}  Qa3 {[%clk 0:00:26]} 26. Bxd5 {[%clk 0:00:14]}  exd5 {[%clk 0:00:22]} 27. Qf2 {[%clk 0:00:14]}  Rb7 {[%clk 0:00:20]} 28. Qd2 {[%clk 0:00:13]}  Rb1 {[%clk 0:00:18]} 29. h3 {[%clk 0:00:12]}  Ra1 {[%clk 0:00:15]} 30. Rxd5 {[%clk 0:00:10]}  Nxd5 {[%clk 0:00:10]} 31. Qxd5+ {[%clk 0:00:10]}  Kh8 {[%clk 0:00:11]} 32. Kh2 {[%clk 0:00:07]}  Qxa2 {[%clk 0:00:10]} 33. Qxf5 {[%clk 0:00:00]}  Rxd1 {[%clk 0:00:07]} 0-1


[Site "https://www.chess.com"]

[Event "Titled Tuesday Blitz May 30 Early 2023"]
[White "Do Nascimento,Christian Almeida"]
[Black "Kaganskiy, Gleb"]
[WhiteFideId "2143801"]
[BlackFideId "4132025"]
[WhiteElo "2118"]
[BlackElo "2165"]
[Result "0-1"]
[Round "05"]
[TimeControl "180+2"]
[Date "2023.05.30"]
[WhiteClock "0:00:06"]
[BlackClock "0:00:11"]

1. d4 {[%clk 0:03:00]}  d5 {[%clk 0:02:47]} 2. Bf4 {[%clk 0:03:00]}  c5 {[%clk 0:02:46]} 3. e3 {[%clk 0:03:00]}  Nc6 {[%clk 0:02:45]} 4. Nc3 {[%clk 0:03:00]}  a6 {[%clk 0:02:41]} 5. Nf3 {[%clk 0:02:59]}  cxd4 {[%clk 0:02:41]} 6. exd4 {[%clk 0:02:59]}  Nf6 {[%clk 0:02:40]} 7. Be2 {[%clk 0:02:59]}  Bg4 {[%clk 0:02:39]} 8. h3 {[%clk 0:02:58]}  Bh5 {[%clk 0:02:39]} 9. Ne5 {[%clk 0:02:55]}  Bxe2 {[%clk 0:02:38]} 10. Nxe2 {[%clk 0:02:56]}  e6 {[%clk 0:02:34]} 11. O-O {[%clk 0:02:56]}  Bd6 {[%clk 0:02:34]} 12. Re1 {[%clk 0:02:55]}  O-O {[%clk 0:02:33]} 13. Ng3 {[%clk 0:02:44]}  Qc7 {[%clk 0:02:28]} 14. c3 {[%clk 0:02:37]}  Bxe5 {[%clk 0:02:19]} 15. Bxe5 {[%clk 0:02:36]}  Nxe5 {[%clk 0:02:19]} 16. dxe5 {[%clk 0:02:30]}  Nd7 {[%clk 0:02:18]} 17. f4 {[%clk 0:02:21]}  Qb6+ {[%clk 0:02:14]} 18. Kh2 {[%clk 0:02:20]}  Qxb2 {[%clk 0:02:14]} 19. Rb1 {[%clk 0:02:12]}  Qxc3 {[%clk 0:02:11]} 20. Rxb7 {[%clk 0:02:11]}  Nc5 {[%clk 0:02:11]} 21. Rc7 {[%clk 0:02:01]}  Rfc8 {[%clk 0:02:05]} 22. Rxc8+ {[%clk 0:01:58]}  Rxc8 {[%clk 0:02:06]} 23. Rf1 {[%clk 0:01:59]}  g6 {[%clk 0:01:49]} 24. Rf3 {[%clk 0:01:51]}  Qc4 {[%clk 0:01:40]} 25. h4 {[%clk 0:01:21]}  Ne4 {[%clk 0:01:32]} 26. h5 {[%clk 0:01:17]}  Nxg3 {[%clk 0:01:28]} 27. Kxg3 {[%clk 0:01:17]}  Qc2 {[%clk 0:01:23]} 28. Qh1 {[%clk 0:01:07]}  Rc3 {[%clk 0:01:11]} 29. Qh4 {[%clk 0:01:00]}  Rxf3+ {[%clk 0:01:06]} 30. gxf3 {[%clk 0:01:01]}  Qc5 {[%clk 0:00:27]} 31. Qd8+ {[%clk 0:00:37]}  Qf8 {[%clk 0:00:28]} 32. Qf6 {[%clk 0:00:26]}  gxh5 {[%clk 0:00:26]} 33. Kf2 {[%clk 0:00:26]}  h6 {[%clk 0:00:23]} 34. Ke2 {[%clk 0:00:24]}  Qg7 {[%clk 0:00:21]} 35. Qd8+ {[%clk 0:00:24]}  Kh7 {[%clk 0:00:21]} 36. Kf2 {[%clk 0:00:23]}  a5 {[%clk 0:00:19]} 37. Qxa5 {[%clk 0:00:22]}  h4 {[%clk 0:00:19]} 38. Qd2 {[%clk 0:00:10]}  Qg3+ {[%clk 0:00:16]} 39. Ke3 {[%clk 0:00:10]}  h3 {[%clk 0:00:14]} 40. Qc2+ {[%clk 0:00:10]}  Kg7 {[%clk 0:00:14]} 41. Qf2 {[%clk 0:00:07]}  Qxf2+ {[%clk 0:00:09]} 42. Kxf2 {[%clk 0:00:08]}  d4 {[%clk 0:00:10]} 43. a4 {[%clk 0:00:06]}  d3 {[%clk 0:00:10]} 44. a5 {[%clk 0:00:07]}  d2 {[%clk 0:00:11]} 45. Ke2 {[%clk 0:00:07]}  h2 {[%clk 0:00:11]} 46. a6 {[%clk 0:00:06]}  h1=Q {[%clk 0:00:11]} 0-1


[Site "https://www.chess.com"]

[Event "Titled Tuesday Blitz May 30 Early 2023"]
[White "Wisdomin"]
[Black "Sarkar, Justin"]
[BlackFideId "2010011"]
[WhiteElo "2504"]
[BlackElo "2168"]
[Result "1-0"]
[Round "05"]
[TimeControl "180+2"]
[Date "2023.05.30"]
[WhiteClock "0:01:29"]
[BlackClock "0:00:00"]

1. e4 {[%clk 0:03:00]}  e5 {[%clk 0:02:00]} 2. Nf3 {[%clk 0:03:00]}  Nc6 {[%clk 0:01:55]} 3. Bb5 {[%clk 0:02:58]}  a6 {[%clk 0:01:54]} 4. Ba4 {[%clk 0:02:55]}  Nf6 {[%clk 0:01:41]} 5. O-O {[%clk 0:02:54]}  Nxe4 {[%clk 0:01:39]} 6. d4 {[%clk 0:02:54]}  b5 {[%clk 0:01:39]} 7. Bb3 {[%clk 0:02:54]}  d5 {[%clk 0:01:39]} 8. dxe5 {[%clk 0:02:54]}  Be6 {[%clk 0:01:39]} 9. c3 {[%clk 0:02:48]}  Bc5 {[%clk 0:01:32]} 10. Nbd2 {[%clk 0:02:43]}  O-O {[%clk 0:01:31]} 11. Bc2 {[%clk 0:02:43]}  Nxf2 {[%clk 0:01:31]} 12. Rxf2 {[%clk 0:02:40]}  f6 {[%clk 0:01:31]} 13. exf6 {[%clk 0:02:32]}  Bxf2+ {[%clk 0:01:31]} 14. Kxf2 {[%clk 0:02:30]}  Qxf6 {[%clk 0:01:31]} 15. Kg1 {[%clk 0:02:24]}  Ne5 {[%clk 0:01:25]} 16. Qe2 {[%clk 0:02:21]}  Nxf3+ {[%clk 0:01:05]} 17. Nxf3 {[%clk 0:02:19]}  Bg4 {[%clk 0:01:02]} 18. Qd3 {[%clk 0:02:18]}  Bxf3 {[%clk 0:00:32]} 19. Qxh7+ {[%clk 0:02:17]}  Kf7 {[%clk 0:00:32]} 20. gxf3 {[%clk 0:02:13]}  Qxf3 {[%clk 0:00:24]} 21. Qf5+ {[%clk 0:02:06]}  Qxf5 {[%clk 0:00:22]} 22. Bxf5 {[%clk 0:02:06]}  Rae8 {[%clk 0:00:23]} 23. Bd2 {[%clk 0:01:58]}  Re2 {[%clk 0:00:20]} 24. Rd1 {[%clk 0:01:58]}  Kg8 {[%clk 0:00:12]} 25. Bg4 {[%clk 0:01:55]}  Re4 {[%clk 0:00:09]} 26. h3 {[%clk 0:01:52]}  d4 {[%clk 0:00:06]} 27. cxd4 {[%clk 0:01:44]}  Rxd4 {[%clk 0:00:06]} 28. Bc3 {[%clk 0:01:39]}  Rxd1+ {[%clk 0:00:05]} 29. Bxd1 {[%clk 0:01:39]}  c5 {[%clk 0:00:04]} 30. Bg4 {[%clk 0:01:31]}  b4 {[%clk 0:00:03]} 31. Bd2 {[%clk 0:01:31]}  Rd8 {[%clk 0:00:00]} 32. Be3 {[%clk 0:01:29]} 1-0


[Site "https://www.chess.com"]

[Event "Titled Tuesday Blitz May 30 Early 2023"]
[White "Jegorovas, Aleksandras"]
[Black "Martinez, Shawn"]
[WhiteFideId "12801950"]
[BlackFideId "2039770"]
[WhiteElo "2247"]
[BlackElo "2174"]
[Result "0-1"]
[Round "05"]
[TimeControl "180+2"]
[Date "2023.05.30"]
[WhiteClock "0:00:07"]
[BlackClock "0:00:11"]

1. Nf3 {[%clk 0:03:00]}  g6 {[%clk 0:02:51]} 2. d4 {[%clk 0:02:58]}  Bg7 {[%clk 0:02:52]} 3. c4 {[%clk 0:02:58]}  Nf6 {[%clk 0:02:51]} 4. Nc3 {[%clk 0:02:58]}  d6 {[%clk 0:02:51]} 5. e4 {[%clk 0:02:57]}  O-O {[%clk 0:02:52]} 6. Be2 {[%clk 0:02:57]}  Nc6 {[%clk 0:02:50]} 7. O-O {[%clk 0:02:58]}  e5 {[%clk 0:02:50]} 8. d5 {[%clk 0:02:57]}  Ne7 {[%clk 0:02:50]} 9. Qc2 {[%clk 0:02:57]}  Nh5 {[%clk 0:02:48]} 10. Rd1 {[%clk 0:02:53]}  f5 {[%clk 0:02:33]} 11. Ng5 {[%clk 0:02:50]}  Nf6 {[%clk 0:02:29]} 12. c5 {[%clk 0:02:43]}  fxe4 {[%clk 0:02:05]} 13. cxd6 {[%clk 0:02:17]}  cxd6 {[%clk 0:01:58]} 14. Ncxe4 {[%clk 0:01:43]}  Nf5 {[%clk 0:01:34]} 15. Ne6 {[%clk 0:01:31]}  Bxe6 {[%clk 0:01:22]} 16. dxe6 {[%clk 0:01:31]}  Nd4 {[%clk 0:01:18]} 17. Qd3 {[%clk 0:01:14]}  d5 {[%clk 0:01:09]} 18. Nxf6+ {[%clk 0:01:08]}  Qxf6 {[%clk 0:01:07]} 19. Be3 {[%clk 0:01:08]}  Nxe2+ {[%clk 0:01:04]} 20. Qxe2 {[%clk 0:01:08]}  d4 {[%clk 0:01:04]} 21. e7 {[%clk 0:01:00]}  Rf7 {[%clk 0:00:57]} 22. Bxd4 {[%clk 0:00:54]}  Rxe7 {[%clk 0:00:53]} 23. Bc3 {[%clk 0:00:53]}  Qe6 {[%clk 0:00:40]} 24. Qe4 {[%clk 0:00:50]}  Rf8 {[%clk 0:00:37]} 25. f3 {[%clk 0:00:49]}  Rf4 {[%clk 0:00:33]} 26. Qd5 {[%clk 0:00:48]}  e4 {[%clk 0:00:31]} 27. Bxg7 {[%clk 0:00:38]}  Qxd5 {[%clk 0:00:28]} 28. Rxd5 {[%clk 0:00:37]}  Kxg7 {[%clk 0:00:28]} 29. Re1 {[%clk 0:00:37]}  Kf6 {[%clk 0:00:25]} 30. Rd4 {[%clk 0:00:35]}  Kf5 {[%clk 0:00:24]} 31. g4+ {[%clk 0:00:28]}  Kf6 {[%clk 0:00:20]} 32. Re3 {[%clk 0:00:19]}  Rxf3 {[%clk 0:00:15]} 33. Rexe4 {[%clk 0:00:19]}  Rxe4 {[%clk 0:00:15]} 34. Rxe4 {[%clk 0:00:20]}  Rd3 {[%clk 0:00:16]} 35. Rb4 {[%clk 0:00:18]}  b6 {[%clk 0:00:15]} 36. Kg2 {[%clk 0:00:18]}  h5 {[%clk 0:00:14]} 37. gxh5 {[%clk 0:00:16]}  gxh5 {[%clk 0:00:15]} 38. Ra4 {[%clk 0:00:16]}  a5 {[%clk 0:00:15]} 39. b4 {[%clk 0:00:15]}  Rd4 {[%clk 0:00:14]} 40. a3 {[%clk 0:00:15]}  Kf5 {[%clk 0:00:12]} 41. Kg3 {[%clk 0:00:15]}  Rg4+ {[%clk 0:00:12]} 42. Kf3 {[%clk 0:00:15]}  Rc4 {[%clk 0:00:13]} 43. Kg3 {[%clk 0:00:15]}  Ke5 {[%clk 0:00:12]} 44. Kf3 {[%clk 0:00:14]}  Kd5 {[%clk 0:00:12]} 45. Ke3 {[%clk 0:00:14]}  Rh4 {[%clk 0:00:12]} 46. Kd3 {[%clk 0:00:14]}  Rh3+ {[%clk 0:00:11]} 47. Kc2 {[%clk 0:00:14]}  Rxh2+ {[%clk 0:00:11]} 48. Kb3 {[%clk 0:00:14]}  Rh4 {[%clk 0:00:12]} 49. bxa5 {[%clk 0:00:08]}  Rxa4 {[%clk 0:00:11]} 50. Kxa4 {[%clk 0:00:07]}  bxa5 {[%clk 0:00:11]} 51. Kxa5 {[%clk 0:00:07]}  h4 {[%clk 0:00:12]} 52. Kb6 {[%clk 0:00:07]}  h3 {[%clk 0:00:13]} 53. a4 {[%clk 0:00:08]}  h2 {[%clk 0:00:13]} 54. a5 {[%clk 0:00:08]}  h1=Q {[%clk 0:00:14]} 55. a6 {[%clk 0:00:09]}  Qb1+ {[%clk 0:00:14]} 56. Kc7 {[%clk 0:00:09]}  Qc2+ {[%clk 0:00:12]} 57. Kb8 {[%clk 0:00:09]}  Qb3+ {[%clk 0:00:13]} 58. Ka8 {[%clk 0:00:08]}  Kc6 {[%clk 0:00:12]} 59. Ka7 {[%clk 0:00:08]}  Qb6+ {[%clk 0:00:11]} 60. Ka8 {[%clk 0:00:08]}  Qd8+ {[%clk 0:00:12]} 61. Ka7 {[%clk 0:00:08]}  Qc7+ {[%clk 0:00:11]} 62. Ka8 {[%clk 0:00:09]}  Qb6 {[%clk 0:00:11]} 63. a7 {[%clk 0:00:07]}  Qb7# {[%clk 0:00:11]} 0-1


[Site "https://www.chess.com"]

[Event "Titled Tuesday Blitz May 30 Early 2023"]
[White "Campos, Maria Jose"]
[Black "Janaszak, Dawid"]
[WhiteFideId "146803"]
[BlackFideId "1119206"]
[WhiteElo "2170"]
[BlackElo "2220"]
[Result "1-0"]
[Round "05"]
[TimeControl "180+2"]
[Date "2023.05.30"]
[WhiteClock "0:01:08"]
[BlackClock "0:01:36"]

1. c4 {[%clk 0:03:00]}  e6 {[%clk 0:02:58]} 2. g3 {[%clk 0:02:55]}  d5 {[%clk 0:02:56]} 3. Bg2 {[%clk 0:02:53]}  h5 {[%clk 0:02:57]} 4. Nf3 {[%clk 0:02:51]}  h4 {[%clk 0:02:57]} 5. Nxh4 {[%clk 0:02:50]}  Rxh4 {[%clk 0:02:57]} 6. gxh4 {[%clk 0:02:50]}  Qxh4 {[%clk 0:02:58]} 7. cxd5 {[%clk 0:02:50]}  exd5 {[%clk 0:02:58]} 8. Nc3 {[%clk 0:02:43]}  c6 {[%clk 0:02:46]} 9. d3 {[%clk 0:02:38]}  Nf6 {[%clk 0:02:44]} 10. Qa4 {[%clk 0:02:36]}  Bb4 {[%clk 0:02:37]} 11. Bd2 {[%clk 0:02:26]}  Na6 {[%clk 0:02:27]} 12. a3 {[%clk 0:02:14]}  Ng4 {[%clk 0:02:22]} 13. O-O-O {[%clk 0:01:58]}  b5 {[%clk 0:02:19]} 14. Nxb5 {[%clk 0:01:48]}  Bxd2+ {[%clk 0:02:03]} 15. Rxd2 {[%clk 0:01:42]}  cxb5 {[%clk 0:02:03]} 16. Qxb5+ {[%clk 0:01:36]}  Kf8 {[%clk 0:02:00]} 17. Qxd5 {[%clk 0:01:31]}  Nc7 {[%clk 0:01:48]} 18. Qd6+ {[%clk 0:01:30]}  Qe7 {[%clk 0:01:47]} 19. Qxe7+ {[%clk 0:01:29]}  Kxe7 {[%clk 0:01:47]} 20. Bxa8 {[%clk 0:01:30]}  Nxa8 {[%clk 0:01:48]} 21. Rg1 {[%clk 0:01:26]}  Nxh2 {[%clk 0:01:43]} 22. Rxg7 {[%clk 0:01:24]}  Ng4 {[%clk 0:01:43]} 23. Rc2 {[%clk 0:01:22]}  Be6 {[%clk 0:01:40]} 24. Rg8 {[%clk 0:01:16]}  Nb6 {[%clk 0:01:41]} 25. Rc7+ {[%clk 0:01:14]}  Kd6 {[%clk 0:01:39]} 26. Rxa7 {[%clk 0:01:14]}  Nxf2 {[%clk 0:01:40]} 27. Ra6 {[%clk 0:01:11]}  Kc6 {[%clk 0:01:36]} 28. Rb8 {[%clk 0:01:08]} 1-0


[Site "https://www.chess.com"]